[Event "*** Monthly 3|2 Blitz Masters"]
[Site "Chess.com"]
[Date "2014.11.25"]
[Round "4"]
[White "Nouki"]
[Black "vovkcoach"]
[Result "1-0"]
[WhiteElo "2658"]
[BlackElo "2491"]
[TimeControl "180+2"]
[EndTime "11:46:29 PST"]
[Termination "Nouki won by resignation"]

1. d4 {[%clk 0:03:00]} 1... Nf6 {[%clk 0:02:50.1]} 2. c4 {[%clk 0:03:00.2]} 2...
e6 {[%clk 0:02:51.2]} 3. Nf3 {[%clk 0:03:00.2]} 3... Bb4+ {[%clk 0:02:50.9]} 4.
Bd2 {[%clk 0:03:01.7]} 4... Qe7 {[%clk 0:02:51.1]} 5. g3 {[%clk 0:03:02.8]} 5...
Nc6 {[%clk 0:02:50.7]} 6. Nc3 {[%clk 0:03:03.6]} 6... Bxc3 {[%clk 0:02:49.2]} 7.
Bxc3 {[%clk 0:03:05.5]} 7... Ne4 {[%clk 0:02:51.1]} 8. Rc1 {[%clk 0:03:06.9]}
8... d6 {[%clk 0:02:49.5]} 9. Bg2 {[%clk 0:03:07.3]} 9... O-O {[%clk 0:02:49.6]}
10. d5 {[%clk 0:03:07.9]} 10... Nxc3 {[%clk 0:02:50.3]} 11. Rxc3 {[%clk
0:03:08.4]} 11... Nd8 {[%clk 0:02:52.2]} 12. Nd2 {[%clk 0:03:04.6]} 12... e5
{[%clk 0:02:42.9]} 13. O-O {[%clk 0:03:03.7]} 13... b6 {[%clk 0:02:39.9]} 14. b4
{[%clk 0:02:53.1]} 14... a5 {[%clk 0:02:39.8]} 15. a3 {[%clk 0:02:54]} 15...
axb4 {[%clk 0:02:35.7]} 16. axb4 {[%clk 0:02:55.9]} 16... f5 {[%clk 0:02:37.1]}
17. Qc1 {[%clk 0:02:45.5]} 17... Nf7 {[%clk 0:02:31.2]} 18. Ra3 {[%clk
0:02:44.7]} 18... Bd7 {[%clk 0:02:29.5]} 19. Qa1 {[%clk 0:02:44.8]} 19... Rxa3
{[%clk 0:02:28]} 20. Qxa3 {[%clk 0:02:45.6]} 20... e4 {[%clk 0:02:29.9]} 21. e3
{[%clk 0:02:37.2]} 21... Ne5 {[%clk 0:02:29.2]} 22. Qa7 {[%clk 0:02:33.2]} 22...
Be8 {[%clk 0:02:25.9]} 23. Qa6 {[%clk 0:02:13.2]} 23... Bh5 {[%clk 0:02:24.5]}
24. Nb3 {[%clk 0:02:13.6]} 24... Be2 {[%clk 0:02:24.2]} 25. Rc1 {[%clk
0:02:12.1]} 25... Nd3 {[%clk 0:02:07.1]} 26. Ra1 {[%clk 0:02:01.5]} 26... Nxb4
{[%clk 0:02:03.8]} 27. Qb5 {[%clk 0:02:01.7]} 27... Nd3 {[%clk 0:01:36.2]} 28.
Nd4 {[%clk 0:01:59.4]} 28... Bh5 {[%clk 0:01:34.3]} 29. Ne6 {[%clk 0:01:55]}
29... Rc8 {[%clk 0:01:28.5]} 30. Qc6 {[%clk 0:01:45.2]} 30... Bf7 {[%clk
0:01:26.4]} 31. Ra8 {[%clk 0:01:35.8]} 31... Bxe6 {[%clk 0:01:21.1]} 32. dxe6
{[%clk 0:01:36.4]} 32... Rxa8 {[%clk 0:00:34.4]} 33. Qxa8+ {[%clk 0:01:36.9]}
33... Qf8 {[%clk 0:00:36.3]} 34. Qd5 {[%clk 0:01:36.8]} 34... Qe7 {[%clk
0:00:30.1]} 35. Qxf5 {[%clk 0:01:36.6]} 35... Nc5 {[%clk 0:00:28.9]} 36. Bxe4
{[%clk 0:01:36.3]} 36... g6 {[%clk 0:00:30.3]} 37. Qg4 {[%clk 0:01:35]} 37...
Qf6 {[%clk 0:00:23.2]} 38. Bd5 {[%clk 0:01:32.1]} 38... Kf8 {[%clk 0:00:24.3]}
39. h4 {[%clk 0:01:23.6]} 39... Ke7 {[%clk 0:00:24]} 40. h5 {[%clk 0:01:19.5]}
40... Nxe6 {[%clk 0:00:23.3]} 41. hxg6 {[%clk 0:01:20.9]} 41... hxg6 {[%clk
0:00:24.8]} 42. Qh3 {[%clk 0:01:19.6]} 42... Qf5 {[%clk 0:00:09.4]} 43. Qh7+
{[%clk 0:01:13.4]} 43... Kd8 {[%clk 0:00:10]} 44. Qg8+ {[%clk 0:01:04.8]} 44...
Ke7 {[%clk 0:00:10]} 45. Qc8 {[%clk 0:01:02.3]} 45... c5 {[%clk 0:00:09]} 46.
Qb7+ {[%clk 0:00:59.8]} 46... Kf6 {[%clk 0:00:09.7]} 47. Qxb6 {[%clk 0:01:00.2]}
47... Qe5 {[%clk 0:00:10.3]} 48. Qb8 {[%clk 0:00:58.3]} 48... Kg7 {[%clk
0:00:06.7]} 49. Qe8 {[%clk 0:00:56.7]} 49... Ng5 {[%clk 0:00:06.2]} 50. Qg8+
{[%clk 0:00:53.2]} 50... Kh6 {[%clk 0:00:06.6]} 51. Kg2 {[%clk 0:00:53]} 51...
Qf5 {[%clk 0:00:04.9]} 52. Qh8+ {[%clk 0:00:50.5]} 52... Nh7 {[%clk 0:00:06.4]}
53. Bg8 {[%clk 0:00:51.2]} 53... Qe4+ {[%clk 0:00:02.4]} 54. Kh2 {[%clk
0:00:50.9]} 54... g5 {[%clk 0:00:03.3]} 55. g4 {[%clk 0:00:35]} 55... Qe5+
{[%clk 0:00:02.9]} 56. Qxe5 {[%clk 0:00:35.7]} 56... dxe5 {[%clk 0:00:04.8]} 57.
Bxh7 {[%clk 0:00:37.1]} 57... Kxh7 {[%clk 0:00:06.7]} 58. Kg3 {[%clk 0:00:38]}
58... Kg6 {[%clk 0:00:07.7]} 59. f4 {[%clk 0:00:37.7]} 59... e4 {[%clk
0:00:05.6]} 60. f5+ {[%clk 0:00:38.3]} 60... Kf6 {[%clk 0:00:05.9]} 61. Kf2
{[%clk 0:00:39.9]} 61... Ke5 {[%clk 0:00:06.5]} 62. Ke2 {[%clk 0:00:41.4]} 62...
Kd6 {[%clk 0:00:08.4]} 63. Kd2 {[%clk 0:00:42.9]} 63... Kc6 {[%clk 0:00:08.4]}
64. Kc3 {[%clk 0:00:44.4]} 64... Kd6 {[%clk 0:00:08.2]} 65. Kb3 {[%clk
0:00:45.7]} 1-0

[Event "*** Monthly 3|2 Blitz Masters"]
[Site "Chess.com"]
[Date "2014.11.25"]
[Round "4"]
[White "Bab3s"]
[Black "minnesotachessmaster"]
[Result "0-1"]
[WhiteElo "2075"]
[BlackElo "1931"]
[TimeControl "180+2"]
[EndTime "11:46:29 PST"]
[Termination "minnesotachessmaster won by resignation"]

1. e4 {[%clk 0:03:00]} 1... e6 {[%clk 0:02:57.9]} 2. d4 {[%clk 0:03:01.2]} 2...
d5 {[%clk 0:02:58.5]} 3. Nc3 {[%clk 0:03:02.7]} 3... Bb4 {[%clk 0:02:57.9]} 4.
e5 {[%clk 0:03:03.7]} 4... c5 {[%clk 0:02:58.5]} 5. a3 {[%clk 0:03:05.1]} 5...
Bxc3+ {[%clk 0:02:57.5]} 6. bxc3 {[%clk 0:03:07]} 6... Ne7 {[%clk 0:02:58.1]} 7.
Qg4 {[%clk 0:03:04.8]} 7... O-O {[%clk 0:02:57.2]} 8. Bd3 {[%clk 0:03:02.7]}
8... c4 {[%clk 0:02:50.1]} 9. Bxh7+ {[%clk 0:02:36.8]} 9... Kxh7 {[%clk
0:02:50.1]} 10. Qh5+ {[%clk 0:02:38.3]} 10... Kg8 {[%clk 0:02:50.6]} 11. Nf3
{[%clk 0:02:39.9]} 11... f6 {[%clk 0:02:17.2]} 12. exf6 {[%clk 0:02:14.7]} 12...
gxf6 {[%clk 0:02:05]} 13. h4 {[%clk 0:02:11]} 13... Rf7 {[%clk 0:02:00.5]} 14.
Rh3 {[%clk 0:02:04.2]} 14... Rh7 {[%clk 0:01:35.1]} 15. Rg3+ {[%clk 0:01:54.9]}
15... Kh8 {[%clk 0:01:35.7]} 16. Bh6 {[%clk 0:00:49]} 16... Nf5 {[%clk
0:01:20.2]} 17. Rg6 {[%clk 0:00:32.6]} 17... Nd7 {[%clk 0:00:27.6]} 18. g4
{[%clk 0:00:21.5]} 18... Nxh6 {[%clk 0:00:27.6]} 19. Rxh6 {[%clk 0:00:22.6]}
19... Rxh6 {[%clk 0:00:24.3]} 20. Qxh6+ {[%clk 0:00:24.5]} 20... Kg8 {[%clk
0:00:24.3]} 21. g5 {[%clk 0:00:15.8]} 21... Qf8 {[%clk 0:00:24.4]} 22. Qg6+
{[%clk 0:00:15.4]} 22... Qg7 {[%clk 0:00:25]} 23. Qe8+ {[%clk 0:00:16.3]} 23...
Qf8 {[%clk 0:00:25.3]} 24. Qxe6+ {[%clk 0:00:16.5]} 24... Qf7 {[%clk 0:00:25.7]}
25. Qe3 {[%clk 0:00:16]} 25... Nf8 {[%clk 0:00:24.6]} 26. O-O-O {[%clk
0:00:15.5]} 26... Bg4 {[%clk 0:00:24.3]} 27. Qf4 {[%clk 0:00:15.9]} 27... Bxf3
{[%clk 0:00:25.2]} 28. Qxf3 {[%clk 0:00:16.9]} 28... fxg5 {[%clk 0:00:26]} 29.
Qg2 {[%clk 0:00:14.2]} 29... Qf4+ {[%clk 0:00:25.9]} 30. Kb2 {[%clk 0:00:15]}
30... Ng6 {[%clk 0:00:25.5]} 31. Qxd5+ {[%clk 0:00:15.5]} 31... Kh7 {[%clk
0:00:22.7]} 32. hxg5 {[%clk 0:00:15.6]} 32... Rf8 {[%clk 0:00:22.3]} 33. Rh1+
{[%clk 0:00:16.1]} 33... Kg7 {[%clk 0:00:23.5]} 34. Qxb7+ {[%clk 0:00:13.9]}
34... Rf7 {[%clk 0:00:24.2]} 35. Qc6 {[%clk 0:00:12.5]} 35... Qf3 {[%clk
0:00:21.5]} 36. Qxc4 {[%clk 0:00:07.3]} 36... Rb7+ {[%clk 0:00:22.1]} 37. Ka2
{[%clk 0:00:08.3]} 37... Qxf2 {[%clk 0:00:19]} 38. Qd3 {[%clk 0:00:04.2]} 38...
Qf7+ {[%clk 0:00:19.8]} 39. c4 {[%clk 0:00:04.9]} 39... Qe7 {[%clk 0:00:19.7]}
40. Rb1 {[%clk 0:00:04.3]} 40... Rxb1 {[%clk 0:00:19]} 41. Kxb1 {[%clk
0:00:06.2]} 41... Qb7+ {[%clk 0:00:19.5]} 42. Ka2 {[%clk 0:00:07.2]} 42... Qa6
{[%clk 0:00:19.6]} 43. d5 {[%clk 0:00:08]} 43... Qd6 {[%clk 0:00:20.3]} 44. Kb3
{[%clk 0:00:08.1]} 44... Ne5 {[%clk 0:00:21.1]} 45. Qd4 {[%clk 0:00:09.2]} 45...
Kg6 {[%clk 0:00:22.3]} 46. c5 {[%clk 0:00:10.4]} 46... Qe7 {[%clk 0:00:20.7]}
47. d6 {[%clk 0:00:11.2]} 47... Qf7+ {[%clk 0:00:22.2]} 48. Kb2 {[%clk
0:00:10.7]} 48... Qf5 {[%clk 0:00:22.5]} 49. c6 {[%clk 0:00:09.1]} 49... Nxc6
{[%clk 0:00:22.9]} 50. Qd2 {[%clk 0:00:08.7]} 50... Qe5+ {[%clk 0:00:23.8]} 51.
Kb1 {[%clk 0:00:09.2]} 51... Nd4 {[%clk 0:00:24]} 52. d7 {[%clk 0:00:08.7]}
52... Qb5+ {[%clk 0:00:25]} 53. Kc1 {[%clk 0:00:08]} 53... Qxd7 {[%clk
0:00:24.9]} 54. Kb2 {[%clk 0:00:05.6]} 54... Qb5+ {[%clk 0:00:25.4]} 55. Qb4
{[%clk 0:00:05.2]} 55... Qe5 {[%clk 0:00:25.3]} 56. Qc3 {[%clk 0:00:05.7]} 56...
Qb5+ {[%clk 0:00:25.6]} 57. Qb4 {[%clk 0:00:06.8]} 57... Qe5 {[%clk 0:00:25.4]}
58. c3 {[%clk 0:00:07.5]} 58... Qe2+ {[%clk 0:00:25.5]} 59. Ka1 {[%clk
0:00:07.5]} 59... Nc2+ {[%clk 0:00:25.2]} 60. Kb1 {[%clk 0:00:09]} 60... Nxb4
{[%clk 0:00:26.2]} 61. axb4 {[%clk 0:00:10.9]} 61... Qc4 {[%clk 0:00:27.5]} 62.
Kb2 {[%clk 0:00:11.3]} 0-1

[Event "*** Monthly 3|2 Blitz Masters"]
[Site "Chess.com"]
[Date "2014.11.25"]
[Round "4"]
[White "redchessman"]
[Black "pKiLz5Rn9b"]
[Result "1-0"]
[WhiteElo "2270"]
[BlackElo "2155"]
[TimeControl "180+2"]
[EndTime "11:46:49 PST"]
[Termination "redchessman won by resignation"]

1. Nf3 {[%clk 0:03:00]} 1... Nf6 {[%clk 0:02:56.3]} 2. c4 {[%clk 0:03:01.3]}
2... e6 {[%clk 0:02:57.4]} 3. g3 {[%clk 0:03:02.3]} 3... d5 {[%clk 0:02:58.6]}
4. Bg2 {[%clk 0:03:03.5]} 4... Be7 {[%clk 0:02:58.8]} 5. O-O {[%clk 0:03:04.6]}
5... O-O {[%clk 0:02:59.9]} 6. b3 {[%clk 0:03:05.8]} 6... c5 {[%clk 0:03:00.4]}
7. e3 {[%clk 0:03:05.8]} 7... Nc6 {[%clk 0:02:59.7]} 8. Bb2 {[%clk 0:03:06.7]}
8... d4 {[%clk 0:03:01]} 9. exd4 {[%clk 0:03:06.2]} 9... cxd4 {[%clk 0:03:02.5]}
10. Re1 {[%clk 0:03:05.4]} 10... Ne8 {[%clk 0:03:03.9]} 11. Ne5 {[%clk
0:03:06.2]} 11... Nxe5 {[%clk 0:03:04.6]} 12. Rxe5 {[%clk 0:03:07.3]} 12... f6
{[%clk 0:03:06.2]} 13. Re1 {[%clk 0:03:07.7]} 13... e5 {[%clk 0:03:07.4]} 14. f4
{[%clk 0:03:07.3]} 14... exf4 {[%clk 0:03:05.7]} 15. Qf3 {[%clk 0:03:07.5]}
15... fxg3 {[%clk 0:02:46.7]} 16. Qd5+ {[%clk 0:03:07.3]} 16... Kh8 {[%clk
0:02:48.2]} 17. hxg3 {[%clk 0:03:07.5]} 17... Qxd5 {[%clk 0:02:45.3]} 18. Bxd5
{[%clk 0:03:03.7]} 18... Bc5 {[%clk 0:02:45.6]} 19. Ba3 {[%clk 0:02:50.3]} 19...
Bxa3 {[%clk 0:02:42.1]} 20. Nxa3 {[%clk 0:02:50.3]} 20... Nc7 {[%clk 0:02:43.5]}
21. Bg2 {[%clk 0:02:40.5]} 21... Rb8 {[%clk 0:02:33.7]} 22. Re7 {[%clk
0:02:39.1]} 22... Ne6 {[%clk 0:02:22.6]} 23. Bd5 {[%clk 0:02:18.4]} 23... Ng5
{[%clk 0:02:06.4]} 24. Nb5 {[%clk 0:02:14]} 24... a6 {[%clk 0:01:45.7]} 25. Nxd4
{[%clk 0:02:12.5]} 25... b5 {[%clk 0:01:45]} 26. c5 {[%clk 0:01:32]} 26... Bg4
{[%clk 0:01:25.7]} 27. Ne6 {[%clk 0:01:16.7]} 27... Bxe6 {[%clk 0:01:17.5]} 28.
Bxe6 {[%clk 0:01:16.6]} 28... Rbd8 {[%clk 0:01:13.8]} 29. Bd7 {[%clk 0:01:11.1]}
29... Nf7 {[%clk 0:00:39.2]} 30. d4 {[%clk 0:01:01.3]} 30... Ra8 {[%clk
0:00:17.3]} 31. Be6 {[%clk 0:00:40.3]} 31... Ng5 {[%clk 0:00:14.6]} 32. d5
{[%clk 0:00:37.6]} 32... Nxe6 {[%clk 0:00:10.7]} 33. Rxe6 {[%clk 0:00:37.8]}
33... Rfd8 {[%clk 0:00:11.7]} 34. d6 {[%clk 0:00:35.6]} 34... Rac8 {[%clk
0:00:12.7]} 35. b4 {[%clk 0:00:32]} 35... Kg8 {[%clk 0:00:10.5]} 36. a4 {[%clk
0:00:31.9]} 36... bxa4 {[%clk 0:00:08.4]} 37. Rxa4 {[%clk 0:00:32.6]} 37... Rc6
{[%clk 0:00:09.8]} 38. Re7 {[%clk 0:00:26.8]} 38... Rb8 {[%clk 0:00:06.5]} 39.
Kf2 {[%clk 0:00:15.1]} 39... Kf8 {[%clk 0:00:07.6]} 40. Kf3 {[%clk 0:00:13.9]}
40... Ra8 {[%clk 0:00:05.5]} 41. Rb7 {[%clk 0:00:13.5]} 41... a5 {[%clk
0:00:05]} 42. Rb5 {[%clk 0:00:09.5]} 42... Rca6 {[%clk 0:00:03]} 43. Rbxa5
{[%clk 0:00:10.2]} 43... Rxa5 {[%clk 0:00:04.1]} 44. Rxa5 {[%clk 0:00:11.5]}
44... Rb8 {[%clk 0:00:05.7]} 45. b5 {[%clk 0:00:12.6]} 45... Kf7 {[%clk
0:00:07.3]} 46. c6 {[%clk 0:00:13.5]} 46... Ke6 {[%clk 0:00:08.7]} 47. d7 {[%clk
0:00:14.7]} 47... Kd6 {[%clk 0:00:09]} 48. Ke4 {[%clk 0:00:15.7]} 48... Rd8
{[%clk 0:00:06.2]} 49. Ra7 {[%clk 0:00:15]} 49... g6 {[%clk 0:00:05.4]} 50. Rb7
{[%clk 0:00:15.7]} 50... Rf8 {[%clk 0:00:04.2]} 51. Kd4 {[%clk 0:00:15.8]} 51...
f5 {[%clk 0:00:05]} 52. Ra7 {[%clk 0:00:11.1]} 52... g5 {[%clk 0:00:05.8]} 53.
Ra2 {[%clk 0:00:11.5]} 53... f4 {[%clk 0:00:06.8]} 54. gxf4 {[%clk 0:00:12.3]}
54... gxf4 {[%clk 0:00:08.5]} 55. Rh2 {[%clk 0:00:13.1]} 55... f3 {[%clk
0:00:07.7]} 56. Ke3 {[%clk 0:00:13.8]} 56... Kc7 {[%clk 0:00:08.1]} 57. Kf2
{[%clk 0:00:12.7]} 57... Rf5 {[%clk 0:00:07.9]} 58. Rxh7 {[%clk 0:00:12.1]}
58... Rxb5 {[%clk 0:00:08.1]} 59. Rh8 {[%clk 0:00:13.3]} 59... Rd5 {[%clk
0:00:09.3]} 60. Kxf3 {[%clk 0:00:12.2]} 60... Rd6 {[%clk 0:00:06.2]} 61. Rc8+
{[%clk 0:00:11.9]} 61... Kb6 {[%clk 0:00:07.1]} 62. d8=Q+ {[%clk 0:00:13.3]} 1-0

[Event "*** Monthly 3|2 Blitz Masters"]
[Site "Chess.com"]
[Date "2014.11.25"]
[Round "4"]
[White "oggy1984"]
[Black "MattyDPerrine"]
[Result "0-1"]
[WhiteElo "2219"]
[BlackElo "2037"]
[TimeControl "180+2"]
[EndTime "11:46:49 PST"]
[Termination "MattyDPerrine won by resignation"]

1. e4 {[%clk 0:02:59.2]} 1... c5 {[%clk 0:02:55.3]} 2. Nf3 {[%clk 0:02:59.7]}
2... g6 {[%clk 0:02:56.7]} 3. c3 {[%clk 0:02:58.1]} 3... Bg7 {[%clk 0:02:53.2]}
4. d4 {[%clk 0:02:58.9]} 4... cxd4 {[%clk 0:02:55.1]} 5. cxd4 {[%clk 0:02:59.7]}
5... d5 {[%clk 0:02:56.8]} 6. e5 {[%clk 0:03:00.9]} 6... Nc6 {[%clk 0:02:54.1]}
7. h3 {[%clk 0:03:01.7]} 7... Qb6 {[%clk 0:02:53.9]} 8. Nc3 {[%clk 0:03:02]}
8... e6 {[%clk 0:02:50.5]} 9. Be2 {[%clk 0:03:02.4]} 9... Nge7 {[%clk
0:02:51.2]} 10. O-O {[%clk 0:03:01.5]} 10... a6 {[%clk 0:02:48.2]} 11. a3 {[%clk
0:02:58.5]} 11... Nf5 {[%clk 0:02:49.1]} 12. Na4 {[%clk 0:02:50.8]} 12... Qa7
{[%clk 0:02:49.9]} 13. Be3 {[%clk 0:02:50.3]} 13... b5 {[%clk 0:02:38.8]} 14.
Nc3 {[%clk 0:02:41.1]} 14... f6 {[%clk 0:02:32.1]} 15. exf6 {[%clk 0:02:30]}
15... Bxf6 {[%clk 0:02:34]} 16. Re1 {[%clk 0:02:03.2]} 16... O-O {[%clk
0:02:32]} 17. Rc1 {[%clk 0:01:49.5]} 17... Ncxd4 {[%clk 0:02:27.6]} 18. Nxd4
{[%clk 0:01:50.1]} 18... Bxd4 {[%clk 0:02:23.9]} 19. Bxd4 {[%clk 0:01:48.7]}
19... Qxd4 {[%clk 0:02:17.1]} 20. Bg4 {[%clk 0:01:49.2]} 20... Qxd1 {[%clk
0:02:05.5]} 21. Rcxd1 {[%clk 0:01:49.6]} 21... h5 {[%clk 0:01:54.1]} 22. Bxf5
{[%clk 0:01:43.3]} 22... Rxf5 {[%clk 0:01:55]} 23. Ne2 {[%clk 0:01:44.2]} 23...
Bd7 {[%clk 0:01:43.7]} 24. Nd4 {[%clk 0:01:44]} 24... Rf6 {[%clk 0:01:44.9]} 25.
Rc1 {[%clk 0:01:40.1]} 25... Rc8 {[%clk 0:00:59]} 26. Rxc8+ {[%clk 0:01:37.5]}
26... Bxc8 {[%clk 0:01:00.9]} 27. Rc1 {[%clk 0:01:38.4]} 27... Bd7 {[%clk
0:00:54.9]} 28. Rc7 {[%clk 0:01:37.2]} 28... Rf7 {[%clk 0:00:55.6]} 29. Nb3
{[%clk 0:01:32.5]} 29... e5 {[%clk 0:00:52]} 30. Nc5 {[%clk 0:01:26.6]} 30...
Bf5 {[%clk 0:00:53]} 31. Rc6 {[%clk 0:01:26.9]} 31... a5 {[%clk 0:00:16.7]} 32.
Rd6 {[%clk 0:01:11.5]} 32... d4 {[%clk 0:00:15.8]} 33. b4 {[%clk 0:01:08.8]}
33... axb4 {[%clk 0:00:16.9]} 34. axb4 {[%clk 0:01:10.7]} 34... Ra7 {[%clk
0:00:16.7]} 35. Rd5 {[%clk 0:00:38]} 35... Ra1+ {[%clk 0:00:11.8]} 36. Kh2
{[%clk 0:00:39.2]} 36... Rb1 {[%clk 0:00:13.7]} 37. Rxe5 {[%clk 0:00:35.9]}
37... Rxb4 {[%clk 0:00:14.9]} 38. Rd5 {[%clk 0:00:36.8]} 38... Rc4 {[%clk
0:00:14.2]} 39. f3 {[%clk 0:00:34]} 39... h4 {[%clk 0:00:14.5]} 40. g4 {[%clk
0:00:29.3]} 40... hxg3+ {[%clk 0:00:16.4]} 41. Kxg3 {[%clk 0:00:31]} 41... b4
{[%clk 0:00:17.9]} 42. h4 {[%clk 0:00:30.8]} 42... Kh7 {[%clk 0:00:12.7]} 43. h5
{[%clk 0:00:31.4]} 43... Kh6 {[%clk 0:00:13.8]} 44. hxg6 {[%clk 0:00:32.1]}
44... Kxg6 {[%clk 0:00:15.6]} 45. Kf4 {[%clk 0:00:32.9]} 45... Bc2 {[%clk
0:00:17]} 46. Rd6+ {[%clk 0:00:31.9]} 46... Kf7 {[%clk 0:00:18]} 47. Ne6 {[%clk
0:00:29.9]} 47... d3+ {[%clk 0:00:17]} 48. Ke5 {[%clk 0:00:30.8]} 48... b3
{[%clk 0:00:16.9]} 49. Rd7+ {[%clk 0:00:30.6]} 49... Kg6 {[%clk 0:00:17.3]} 50.
f4 {[%clk 0:00:27.5]} 50... d2 {[%clk 0:00:17.1]} 51. Rxd2 {[%clk 0:00:25.6]}
51... Re4+ {[%clk 0:00:17.9]} 52. Kd5 {[%clk 0:00:24.8]} 52... Re1 {[%clk
0:00:19.1]} 53. Rg2+ {[%clk 0:00:18.3]} 53... Kf6 {[%clk 0:00:19.1]} 54. Nd4
{[%clk 0:00:03.3]} 54... b2 {[%clk 0:00:18.6]} 55. Rxc2 {[%clk 0:00:03.4]} 55...
b1=Q {[%clk 0:00:19.4]} 56. Rc6+ {[%clk 0:00:05.3]} 56... Kf7 {[%clk 0:00:20]}
57. Rc7+ {[%clk 0:00:06.2]} 57... Kg8 {[%clk 0:00:21.3]} 58. Rc8+ {[%clk
0:00:07.3]} 58... Kf7 {[%clk 0:00:21.7]} 59. Rc7+ {[%clk 0:00:08.5]} 59... Ke8
{[%clk 0:00:23.3]} 60. Rc8+ {[%clk 0:00:02.8]} 60... Kd7 {[%clk 0:00:24.2]} 61.
Rc5 {[%clk 0:00:03.8]} 61... Qa2+ {[%clk 0:00:23.2]} 62. Rc4 {[%clk 0:00:03.3]}
62... Rc1 {[%clk 0:00:24.4]} 0-1

[Event "*** Monthly 3|2 Blitz Masters"]
[Site "Chess.com"]
[Date "2014.11.25"]
[Round "4"]
[White "Philofive"]
[Black "juniortay"]
[Result "1/2-1/2"]
[WhiteElo "2212"]
[BlackElo "2198"]
[TimeControl "180+2"]
[EndTime "11:46:51 PST"]
[Termination "Game drawn by agreement"]

1. d4 {[%clk 0:02:44.6]} 1... Nf6 {[%clk 0:02:57.6]} 2. Bg5 {[%clk 0:02:44.9]}
2... Ne4 {[%clk 0:02:58.1]} 3. Bf4 {[%clk 0:02:45.7]} 3... c5 {[%clk 0:02:59.2]}
4. f3 {[%clk 0:02:46.7]} 4... Qa5+ {[%clk 0:03:00.3]} 5. c3 {[%clk 0:02:47.6]}
5... Nf6 {[%clk 0:03:01.5]} 6. d5 {[%clk 0:02:48.3]} 6... d6 {[%clk 0:02:59.3]}
7. e4 {[%clk 0:02:48.3]} 7... g6 {[%clk 0:03:00.2]} 8. Na3 {[%clk 0:02:49]} 8...
Nbd7 {[%clk 0:02:56.4]} 9. Qd2 {[%clk 0:02:47.7]} 9... h5 {[%clk 0:02:55.8]} 10.
Nh3 {[%clk 0:02:19.2]} 10... Bg7 {[%clk 0:02:54.4]} 11. Be2 {[%clk 0:02:18.1]}
11... a6 {[%clk 0:02:53.2]} 12. Nc4 {[%clk 0:02:17.7]} 12... Qc7 {[%clk
0:02:52.8]} 13. a4 {[%clk 0:02:19.1]} 13... Nb6 {[%clk 0:02:36.3]} 14. Nf2
{[%clk 0:02:18]} 14... Nxc4 {[%clk 0:02:32.7]} 15. Bxc4 {[%clk 0:02:16]} 15...
Rb8 {[%clk 0:02:33.6]} 16. a5 {[%clk 0:02:16.7]} 16... Nd7 {[%clk 0:01:54.5]}
17. O-O {[%clk 0:02:09.8]} 17... Ne5 {[%clk 0:01:53.8]} 18. Be2 {[%clk 0:02:10]}
18... Bd7 {[%clk 0:01:48.8]} 19. b4 {[%clk 0:01:47.6]} 19... O-O {[%clk
0:01:37]} 20. Be3 {[%clk 0:01:48.4]} 20... c4 {[%clk 0:01:08.8]} 21. h3 {[%clk
0:01:27.7]} 21... Bb5 {[%clk 0:01:01.4]} 22. Bb6 {[%clk 0:01:16]} 22... Qc8
{[%clk 0:00:53.5]} 23. Ba7 {[%clk 0:01:16.6]} 23... Ra8 {[%clk 0:00:53.5]} 24.
Bd4 {[%clk 0:01:17.4]} 24... Qd7 {[%clk 0:00:41.8]} 25. f4 {[%clk 0:01:15.2]}
25... Nd3 {[%clk 0:00:42.9]} 26. Bxg7 {[%clk 0:01:14.9]} 26... Kxg7 {[%clk
0:00:41.5]} 27. Nxd3 {[%clk 0:01:15.5]} 27... cxd3 {[%clk 0:00:43.4]} 28. Bxd3
{[%clk 0:01:16.5]} 28... Rac8 {[%clk 0:00:44.3]} 29. Rac1 {[%clk 0:01:15.8]}
29... Bxd3 {[%clk 0:00:39.7]} 30. Qxd3 {[%clk 0:01:16.8]} 30... Qb5 {[%clk
0:00:41.3]} 31. Rfd1 {[%clk 0:00:34.2]} 31... Rc4 {[%clk 0:00:40.7]} 32. Kf2
{[%clk 0:00:31.1]} 32... Rfc8 {[%clk 0:00:41.4]} 33. Re1 {[%clk 0:00:29.4]}
33... b6 {[%clk 0:00:38.1]} 34. axb6 {[%clk 0:00:29.1]} 34... Qxb6+ {[%clk
0:00:39.3]} 35. Qe3 {[%clk 0:00:29.8]} 35... Qc7 {[%clk 0:00:40.1]} 36. Red1
{[%clk 0:00:22.3]} 36... Rxc3 {[%clk 0:00:40]} 37. Rxc3 {[%clk 0:00:23.3]} 37...
Qxc3 {[%clk 0:00:41.8]} 38. Qxc3+ {[%clk 0:00:24.3]} 38... Rxc3 {[%clk 0:00:43]}
39. Ra1 {[%clk 0:00:25.8]} 39... Rb3 {[%clk 0:00:42.1]} 40. Rxa6 {[%clk
0:00:25.7]} 40... Rxb4 {[%clk 0:00:43.3]} 41. Kf3 {[%clk 0:00:27.2]} 41... Rb3+
{[%clk 0:00:43.2]} 42. Kf2 {[%clk 0:00:27.7]} 42... Kf6 {[%clk 0:00:44.4]} 43.
Ra7 {[%clk 0:00:28.2]} 43... h4 {[%clk 0:00:45.3]} 44. Rc7 {[%clk 0:00:27.9]}
44... Rb2+ {[%clk 0:00:45.5]} 45. Kf3 {[%clk 0:00:28.8]} 45... Rb3+ {[%clk
0:00:45.9]} 46. Kf2 {[%clk 0:00:30.1]} 46... Rb4 {[%clk 0:00:43.9]} 47. Kf3
{[%clk 0:00:31.1]} 47... Rb3+ {[%clk 0:00:45.1]} 48. Kf2 {[%clk 0:00:23.5]}
48... Rb2+ {[%clk 0:00:45.6]} 49. Kf3 {[%clk 0:00:24.8]} 49... Rb3+ {[%clk
0:00:46.7]} 50. Kf2 {[%clk 0:00:20]} 50... Rb4 {[%clk 0:00:46.1]} 51. e5+ {[%clk
0:00:18.5]} 51... dxe5 {[%clk 0:00:46.5]} 52. fxe5+ {[%clk 0:00:19.4]} 52...
Kxe5 {[%clk 0:00:45.8]} 53. Rxe7+ {[%clk 0:00:20.6]} 53... Kf6 {[%clk
0:00:46.8]} 54. Re3 {[%clk 0:00:19]} 54... Rd4 {[%clk 0:00:47]} 55. Kf3 {[%clk
0:00:19.1]} 55... Rxd5 {[%clk 0:00:47.9]} 56. Kg4 {[%clk 0:00:20.4]} 56... Rg5+
{[%clk 0:00:47.9]} 57. Kf3 {[%clk 0:00:19.7]} 57... Rg3+ {[%clk 0:00:48.9]} 58.
Kf4 {[%clk 0:00:19.1]} 58... Rxe3 {[%clk 0:00:49.6]} 59. Kxe3 {[%clk 0:00:20.8]}
59... Kf5 {[%clk 0:00:50.5]} 60. Kf3 {[%clk 0:00:22.1]} 60... f6 {[%clk
0:00:51.2]} 61. Ke3 {[%clk 0:00:23.5]} 61... Ke5 {[%clk 0:00:50.5]} 62. Kf3
{[%clk 0:00:24.8]} 62... f5 {[%clk 0:00:52.1]} 63. Ke3 {[%clk 0:00:26.1]} 63...
f4+ {[%clk 0:00:52.9]} 64. Kf3 {[%clk 0:00:27.4]} 64... Kf5 {[%clk 0:00:54.5]}
65. Kf2 {[%clk 0:00:28.7]} 65... Ke4 {[%clk 0:00:55.3]} 66. Ke2 {[%clk
0:00:29.8]} 66... g5 {[%clk 0:00:56]} 67. Kf2 {[%clk 0:00:31]} 67... Ke5 {[%clk
0:00:53.4]} 68. Kf3 {[%clk 0:00:31.7]} 68... Kf5 {[%clk 0:00:54.8]} 69. Kf2
{[%clk 0:00:31.8]} 69... g4 {[%clk 0:00:48.9]} 70. hxg4+ {[%clk 0:00:32.8]}
70... Kxg4 {[%clk 0:00:50.8]} 71. Kf1 {[%clk 0:00:34.1]} 71... Kg3 {[%clk
0:00:50.3]} 72. Kg1 {[%clk 0:00:35.2]} 72... h3 {[%clk 0:00:48.2]} 73. gxh3
{[%clk 0:00:36]} 73... Kxh3 {[%clk 0:00:50.1]} 74. Kf2 {[%clk 0:00:37.2]} 74...
Kg4 {[%clk 0:00:50]} 75. Kg2 {[%clk 0:00:38.4]} 75... Kf5 {[%clk 0:00:49.6]} 76.
Kf3 {[%clk 0:00:39.1]} 76... Kg5 {[%clk 0:00:46.8]} 1/2-1/2